fUSD/lending_fUSD_20250806
["ID","MTS","AMOUNT","RATE_DAILY","PERIOD"]
[377563769,1754442704381,-400.0,0.00036712,14]
[377563770,1754442704391,-1638.95,0.00036712,14]
[377563771,1754442704401,-625.21,0.00036712,14]
[377563772,1754442704410,-400.0,0.00036712,14]
[377563773,1754442704419,-400.0,0.00036712,14]
[377563774,1754442704428,-400.0,0.00036712,14]
[377563775,1754442704438,-2528.78,0.00036712,2]
[377563776,1754442704447,-1493.49,0.00036712,14]
[377563777,1754442704457,-2036.4,0.00036712,14]
[377563778,1754442704467,-410.9,0.00036712,14]
[377563779,1754442704476,-400.0,0.00036712,14]
[377563780,1754442704486,-400.0,0.00036712,14]
[377563781,1754442704495,-168.4,0.00036712,14]
[377563782,1754442704505,-1210.7,0.00036712,14]
[377563783,1754442704515,-10006.13,0.00036712,14]
[377563784,1754442704524,-1629.9,0.00036712,14]
[377563785,1754442704534,-400.0,0.00036712,14]
[377563786,1754442704543,-1492.93,0.00036712,14]
[377563787,1754442704552,-1167.12,0.00036712,14]
[377563788,1754442704561,-539.61,0.00036712,14]
[377563789,1754442704571,-1588.35,0.00036712,14]
[377563790,1754442704580,-1152.25,0.00036712,14]
[377563791,1754442704590,-1739.77,0.00036712,14]
[377563792,1754442704599,-483.85233214,0.00036712,14]
[377563793,1754442704609,-665.27,0.00036712,14]
[377563794,1754442704618,-400.0,0.00036712,14]
[377563795,1754442704629,-400.0,0.00036712,14]
[377563796,1754442704639,-1156.38,0.00036712,14]
[377563797,1754442704648,-400.0,0.00036712,14]
[377563798,1754442704657,-400.0,0.00036712,14]
[377563799,1754442704667,-1235.39,0.00036712,14]
[377563800,1754442704676,-400.0,0.00036712,14]
[377563801,1754442704685,-400.0,0.00036712,14]
[377563802,1754442704696,-1042.08,0.00036712,14]
[377563803,1754442704705,-555.31,0.00036712,14]
[377563804,1754442704714,-400.0,0.00036712,14]
[377563805,1754442704724,-771.19,0.00036712,14]
[377563806,1754442704733,-1645.48,0.00036712,14]
[377563807,1754442704743,-610.62,0.00036712,14]
[377563808,1754442704753,-2345.36,0.00036712,14]
[377563809,1754442704762,-855.1,0.00036712,14]
[377563810,1754442704771,-1674.52,0.00036712,14]
[377563811,1754442704781,-400.0,0.00036712,14]
[377563812,1754442704790,-571.85,0.00036712,14]
[377563813,1754442704800,-901.39,0.00036712,14]
[377563814,1754442704810,-1738.31,0.00036712,14]
[377563815,1754442704819,-400.0,0.00036712,14]
[377563816,1754442704829,-2776.05,0.00036712,14]
[377563817,1754442704838,-640.36,0.00036712,14]
[377563818,1754442704848,-421.1,0.00036712,14]
[377563819,1754442704856,-1250.35,0.00036712,14]
[377563820,1754442704865,-648.11,0.00036712,14]
[377563821,1754442704874,-400.0,0.00036712,14]
[377563822,1754442704883,-648.31,0.00036712,14]
[377563823,1754442704892,-400.0,0.00036712,14]
[377563824,1754442704901,-400.0,0.00036712,14]
[377563825,1754442704911,-541.69,0.00036712,14]
[377563826,1754442704920,-400.0,0.00036712,14]
[377563827,1754442704929,-481.1,0.00036712,14]
[377563828,1754442704939,-693.82,0.00036712,14]
[377563829,1754442704948,-400.0,0.00036712,14]
[377563830,1754442704957,-1143.9,0.00036712,14]
[377563831,1754442704967,-1843.83,0.00036712,14]
[377563832,1754442704976,-1216.09,0.00036712,14]
[377563833,1754442704985,-400.0,0.00036712,14]
[377563834,1754442704994,-748.15,0.00036712,14]
[377563835,1754442705003,-2563.26,0.00036712,14]
[377563836,1754442705012,-929.85,0.00036712,14]
[377563837,1754442705021,-400.0,0.00036712,14]
[377563838,1754442705031,-960.91,0.00036712,14]
[377563839,1754442705040,-953.28,0.00036712,14]
[377563840,1754442705049,-1108.19,0.00036712,14]
[377563841,1754442705058,-1077.76,0.00036712,14]
[377563842,1754442705067,-579.13,0.00036712,14]
[377563843,1754442705077,-3361.78,0.00036712,14]
[377563844,1754442705086,-400.0,0.00036712,14]
[377563845,1754442705095,-718.46,0.00036712,14]
[377563846,1754442705104,-451.54,0.00036712,14]
[377563847,1754442705113,-877.04,0.00036712,14]
[377563848,1754442705123,-536.36,0.00036712,14]
[377563849,1754442705132,-663.47,0.00036712,14]
[377563850,1754442705142,-2656.71,0.00036712,14]
[377563851,1754442705151,-400.0,0.00036712,14]
[377563852,1754442705159,-759.76,0.00036712,14]
[377563853,1754442705169,-1728.96,0.00036712,14]
[377563854,1754442705179,-400.0,0.00036712,14]
[377563855,1754442705189,-400.0,0.00036712,14]
[377563856,1754442705198,-400.0,0.00036712,14]
[377563857,1754442705207,-400.0,0.00036712,14]
[377563858,1754442705216,-1511.99,0.00036712,14]
[377563859,1754442705227,-1017.31,0.00036712,14]
[377563860,1754442705362,-1815.4,0.00036712,14]
[377563861,1754442705408,-1422.48,0.00036712,14]
[377563862,1754442705418,-400.0,0.00036712,14]
[377563863,1754442705427,-400.0,0.00036712,14]
[377563864,1754442705436,-400.0,0.00036712,14]
[377563865,1754442705446,-854.48,0.00036712,14]
[377563866,1754442705455,-1276.47,0.00036712,14]
[377563867,1754442705464,-400.0,0.00036712,14]
[377563868,1754442705473,-1666.11,0.00036712,14]
[377563869,1754442705483,-400.0,0.00036712,14]
[377563870,1754442705492,-1981.27,0.00036712,14]
[377563871,1754442705502,-400.0,0.00036712,14]
[377563872,1754442705511,-400.0,0.00036712,14]
[377563873,1754442705520,-400.0,0.00036712,14]
[377563874,1754442705530,-400.0,0.00036712,14]
[377563875,1754442705540,-400.0,0.00036712,14]
[377563876,1754442705549,-917.59,0.00036712,14]
[377563877,1754442705559,-400.0,0.00036712,14]
[377563878,1754442705568,-400.0,0.00036712,14]
[377563879,1754442705578,-1423.17,0.00036712,14]
[377563880,1754442705587,-635.16,0.00036712,14]
[377563881,1754442705597,-400.0,0.00036712,14]
[377563882,1754442705607,-1602.49,0.00036712,14]
[377563883,1754442705616,-400.0,0.00036712,14]
[377563884,1754442705625,-1993.92,0.00036712,14]
[377563885,1754442705634,-400.0,0.00036712,14]
[377563886,1754442705643,-462.48,0.00036712,14]
[377563887,1754442705652,-400.0,0.00036712,14]
[377563888,1754442705661,-400.0,0.00036712,14]
[377563889,1754442705670,-400.0,0.00036712,14]
[377563890,1754442705679,-1745.29,0.00036712,14]
[377563891,1754442705688,-400.0,0.00036712,7]
[377563892,1754442705698,-1505.87,0.00036712,14]
[377563893,1754442705707,-400.0,0.00036712,14]
[377563894,1754442705716,-714.94,0.00036712,14]
[377563895,1754442705726,-400.0,0.00036712,14]
[377563896,1754442705735,-400.0,0.00036712,14]
[377563897,1754442705744,-400.0,0.00036712,14]
[377563898,1754442705753,-400.0,0.00036712,14]
[377563899,1754442705763,-400.0,0.00036712,14]
[377563900,1754442705772,-1862.67,0.00036712,14]
[377563901,1754442705781,-1330.24,0.00036712,14]
[377563902,1754442705791,-1500.66,0.00036712,14]
[377563903,1754442705800,-1806.35,0.00036712,14]
[377563904,1754442705810,-400.0,0.00036712,14]
[377563905,1754442705819,-400.0,0.00036712,14]
[377563906,1754442705829,-1681.57,0.00036712,14]
[377563907,1754442705839,-1855.83,0.00036712,14]
[377563908,1754442705849,-400.0,0.00036712,14]
[377563909,1754442705858,-939.15,0.00036712,14]
[377563910,1754442705868,-400.0,0.00036712,14]
[377563911,1754442705877,-400.0,0.00036712,14]
[377563912,1754442705887,-400.0,0.00036712,14]
[377563913,1754442705896,-1183.54,0.00036712,14]
[377563914,1754442705906,-433.49,0.00036712,14]
[377563915,1754442705916,-400.0,0.00036712,14]
[377563916,1754442705926,-1796.76,0.00036712,14]
[377563917,1754442705936,-400.0,0.00036712,14]
[377563918,1754442705947,-426.54,0.00036712,14]
[377563919,1754442705957,-400.0,0.00036712,14]
[377563920,1754442705966,-540.41,0.00036712,14]
[377563921,1754442705976,-400.0,0.00036712,14]
[377563922,1754442705986,-1268.78,0.00036712,14]
[377563923,1754442705996,-783.57,0.00036712,14]
[377563924,1754442706006,-947.41,0.00036712,14]
[377563925,1754442706017,-400.0,0.00036712,14]
[377563926,1754442706027,-1648.95,0.00036712,14]
[377563927,1754442706037,-400.0,0.00036712,14]
[377563928,1754442706047,-1722.77,0.00036712,14]
[377563929,1754442706056,-1349.25,0.00036712,14]
[377563930,1754442706066,-400.0,0.00036712,14]
[377563931,1754442706075,-480.40308933,0.00036712,14]
[377563932,1754442706085,-609.22,0.00036712,14]
[377563933,1754442706094,-460.65,0.00036712,14]
[377563934,1754442706103,-607.57,0.00036712,14]
[377563935,1754442706112,-1489.1,0.00036712,14]
[377563936,1754442706122,-400.0,0.00036712,14]
[377563937,1754442706132,-1643.92,0.00036712,14]
[377563938,1754442706142,-3508.69,0.00036712,14]
[377563939,1754442706152,-400.0,0.00036712,14]
[377563940,1754442706163,-1560.94,0.00036712,14]
[377563941,1754442706172,-1475.19,0.00036712,14]
[377563942,1754442706181,-1761.36,0.00036712,14]
[377563943,1754442706191,-3179.65,0.00036712,14]
[377563944,1754442706201,-1697.46,0.00036712,14]
[377563945,1754442706210,-396.32078449,0.00036712,14]
[377563946,1754442706219,-460.0,0.00036712,14]
[377563947,1754442706230,-1809.63,0.00036712,14]
[377563948,1754442706241,-400.0,0.00036712,14]
[377563949,1754442706251,-400.0,0.00036712,14]
[377563950,1754442706260,-400.0,0.00036712,14]
[377563951,1754442706271,-369.59126039,0.00036712,14]
[377563952,1754442706280,-996.45,0.00036712,14]
[377563953,1754442706290,-786.64,0.00036712,14]
[377563954,1754442706300,-1813.1,0.00036712,14]
[377563955,1754442706310,-1549.43,0.00036712,14]
[377563956,1754442706320,-978.82,0.00036712,14]
[377563957,1754442706329,-452.79,0.00036712,14]
[377563958,1754442706339,-1973.22,0.00036712,14]
[377563959,1754442706348,-1411.16,0.00036712,14]
[377563960,1754442706357,-400.0,0.00036712,14]
[377563961,1754442706367,-400.0,0.00036712,14]
[377563962,1754442706376,-400.0,0.00036712,14]
[377563963,1754442706386,-1309.23,0.00036712,14]
[377563964,1754442706395,-1898.39,0.00036712,14]
[377563965,1754442706404,-1356.93,0.00036712,14]
[377563966,1754442706414,-400.0,0.00036712,14]
[377563967,1754442706423,-400.0,0.00036712,14]
[377563968,1754442706433,-400.0,0.00036712,14]
[377563969,1754442706442,-1218.86,0.00036712,14]
[377563970,1754442706452,-517.04,0.00036712,14]
[377563971,1754442706461,-400.0,0.00036712,14]
[377563972,1754442706470,-1686.02,0.00036712,14]
[377563973,1754442706480,-613.23,0.00036712,14]
[377563974,1754442706489,-400.0,0.00036712,14]
[377563975,1754442706498,-400.0,0.00036712,14]
[377563976,1754442706508,-1577.44,0.00036712,14]
[377563977,1754442706517,-2936.53,0.00036712,14]
[377563978,1754442706526,-400.0,0.00036712,14]
[377563979,1754442706535,-484.57486293,0.00036712,14]
[377563980,1754442706545,-400.0,0.00036712,14]
[377563981,1754442706555,-1064.45,0.00036712,14]
[377563982,1754442706564,-2278.06,0.00036712,14]
[377563983,1754442706573,-400.0,0.00036712,14]
[377563984,1754442706582,-400.0,0.00036712,14]
[377563985,1754442706592,-400.0,0.00036712,14]
[377563986,1754442706602,-1262.49,0.00036712,14]
[377563987,1754442706612,-400.0,0.00036712,14]
[377563988,1754442706621,-400.0,0.00036712,14]
[377563989,1754442706631,-1099.07,0.00036712,14]
[377563990,1754442706640,-1929.27,0.00036712,14]
[377563991,1754442706650,-881.4,0.00036712,14]
[377563992,1754442706659,-400.0,0.00036712,14]
[377563993,1754442706668,-507.98,0.00036712,14]
[377563994,1754442706678,-400.0,0.00036712,14]
[377563995,1754442706687,-1786.24,0.00036712,14]
[377563996,1754442706698,-400.0,0.00036712,14]
[377563997,1754442706707,-1377.54,0.00036712,14]
[377563998,1754442706717,-458.1,0.00036712,14]
[377563999,1754442706727,-1137.9,0.00036712,14]
[377564000,1754442706736,-1207.69,0.00036712,14]
[377564001,1754442706745,-400.0,0.00036712,14]
[377564002,1754442706757,-997.78,0.00036712,14]
[377564003,1754442706766,-1750.37,0.00036712,14]
[377564004,1754442706776,-1730.65,0.00036712,14]
[377564005,1754442706785,-1365.84,0.00036712,14]
[377564006,1754442706795,-400.0,0.00036712,14]
[377564007,1754442706804,-400.0,0.00036712,14]
[377564008,1754442706814,-2341.23,0.00036712,14]
[377564009,1754442706823,-400.0,0.00036712,14]
[377564010,1754442706833,-2067.81,0.00036712,14]
[377564011,1754442706843,-1000.56,0.00036712,14]
[377564012,1754442706852,-520.16,0.00036712,14]
[377564013,1754442706862,-1930.61,0.00036712,14]
[377564014,1754442706871,-3777.24,0.00036712,14]
[377564015,1754442706881,-400.0,0.00036712,14]
[377564016,1754442706890,-400.0,0.00036712,14]
[377564017,1754442706899,-1228.29,0.00036712,14]
[377564018,1754442706908,-400.0,0.00036712,14]
[377564019,1754442706918,-911.04,0.00036712,14]
[377564020,1754442706928,-1576.28,0.00036712,14]
[377564021,1754442706939,-950.59,0.00036712,14]
[377564022,1754442706949,-823.06,0.00036712,14]
[377564023,1754442706960,-1595.25,0.00036712,14]
[377564024,1754442706969,-1716.12,0.00036712,14]
[377564025,1754442706978,-978.13,0.00036712,14]
[377564026,1754442706988,-400.0,0.00036712,14]
[377564027,1754442706999,-500.0,0.00036712,14]
[377564028,1754442707010,-649.47,0.00036712,14]
[377564029,1754442707020,-1326.1,0.00036712,14]
[377564030,1754442707030,-400.0,0.00036712,14]
[377564031,1754442707041,-151.0,0.00036712,7]
[377564032,1754442707050,-400.0,0.00036712,14]
[377564033,1754442707059,-400.0,0.00036712,14]
[377564034,1754442707068,-400.0,0.00036712,14]
[377564035,1754442707078,-1901.09,0.00036712,14]
[377564036,1754442707087,-651.8,0.00036712,14]
[377564037,1754442707096,-2522.71,0.00036712,14]
[377564038,1754442707108,-995.31,0.00036712,14]
[377564039,1754442707119,-400.0,0.00036712,14]
[377564040,1754442707129,-1221.21,0.00036712,14]
[377564041,1754442707139,-1654.29,0.00036712,14]
[377564042,1754442707147,-1954.85,0.00036712,14]
[377564043,1754442707157,-400.0,0.00036712,14]
[377564044,1754442707166,-400.0,0.00036712,14]
[377564045,1754442707176,-400.0,0.00036712,14]
[377564046,1754442707185,-400.0,0.00036712,14]
[377564047,1754442707195,-400.0,0.00036712,14]
[377564048,1754442707204,-460.29,0.00036712,14]
[377564049,1754442707214,-151.0,0.00036712,7]
[377564050,1754442707223,-400.0,0.00036712,14]
[377564051,1754442707235,-1864.66,0.00036712,14]
[377564052,1754442707244,-1554.97,0.00036712,14]
[377564053,1754442707253,-400.0,0.00036712,14]
[377564054,1754442707263,-2171.6,0.00036712,14]
[377564055,1754442707274,-1890.83,0.00036712,14]
[377564056,1754442707283,-1637.12,0.00036712,14]
[377564057,1754442707293,-1931.75,0.00036712,14]
[377564058,1754442707302,-675.89,0.00036712,14]
[377564059,1754442707312,-1957.27,0.00036712,14]
[377564060,1754442707323,-966.76,0.00036712,14]
[377564061,1754442707332,-569.93,0.00036712,14]
[377564062,1754442707341,-400.0,0.00036712,14]
[377564063,1754442707350,-1186.55,0.00036712,14]
[377564064,1754442707360,-1734.52,0.00036712,14]
[377564065,1754442707369,-1966.61,0.00036712,14]
[377564066,1754442707379,-151.0,0.00036712,7]
[377564067,1754442707388,-400.0,0.00036712,14]
[377564068,1754442707398,-2127.72,0.00036712,14]
[377564069,1754442707408,-721.87,0.00036712,14]
[377564070,1754442707417,-565.93,0.00036712,14]
[377564071,1754442707426,-926.78,0.00036712,14]
[377564072,1754442707436,-400.0,0.00036712,14]
[377564073,1754442707447,-400.0,0.00036712,14]
[377564074,1754442707456,-1157.08,0.00036712,14]
[377564075,1754442707466,-1299.26,0.00036712,14]
[377564076,1754442707477,-579.8,0.00036712,14]
[377564077,1754442707487,-400.0,0.00036712,14]
[377564078,1754442707498,-400.0,0.00036712,14]
[377564079,1754442707865,-1657.04,0.00036712,14]
[377564080,1754442707877,-820.22,0.00036712,14]
[377564081,1754442707887,-1778.69,0.00036712,14]
[377564082,1754442707897,-400.0,0.00036712,14]
[377564083,1754442707907,-1516.87,0.00036712,14]
[377564084,1754442707917,-727.11,0.00036712,14]
[377564085,1754442707926,-400.0,0.00036712,14]
[377564086,1754442707936,-1676.54,0.00036712,14]
[377564087,1754442707948,-400.0,0.00036712,14]
[377564088,1754442707959,-402.12403277,0.00036712,14]
[377564089,1754442707968,-1762.97,0.00036712,14]
[377564090,1754442707978,-1555.03,0.00036712,14]
[377564091,1754442707987,-400.0,0.00036712,14]
[377564092,1754442707998,-400.0,0.00036712,14]
[377564093,1754442708008,-2031.94,0.00036712,14]
[377564094,1754442708017,-400.0,0.00036712,14]
[377564095,1754442708027,-760.26,0.00036712,14]
[377564096,1754442708036,-400.0,0.00036712,14]
[377564097,1754442708045,-2264.12,0.00036712,14]
[377564098,1754442708055,-400.0,0.00036712,14]
[377564099,1754442708064,-400.0,0.00036712,14]
[377564100,1754442708073,-930.41,0.00036712,14]
[377564101,1754442708083,-786.19,0.00036712,14]
[377564102,1754442708092,-524.56,0.00036712,14]
[377564103,1754442708102,-531.32,0.00036712,14]
[377564104,1754442708112,-406.98,0.00036712,14]
[377564105,1754442708122,-589.63,0.00036712,14]
[377564106,1754442708131,-1026.06,0.00036712,14]
[377564107,1754442708141,-400.0,0.00036712,14]
[377564108,1754442708152,-1144.28,0.00036712,14]
[377564109,1754442708162,-400.0,0.00036712,14]
[377564110,1754442708172,-400.0,0.00036712,14]
[377564111,1754442708182,-515.98485234,0.00036712,14]
[377564112,1754442708192,-400.0,0.00036712,14]
[377564113,1754442708202,-400.0,0.00036712,14]
[377564114,1754442708213,-400.0,0.00036712,14]
[377564115,1754442708224,-688.8,0.00036712,14]
[377564116,1754442708235,-2483.16,0.00036712,14]
[377564117,1754442708245,-400.0,0.00036712,14]
[377564118,1754442708255,-2523.61,0.00036712,14]
[377564119,1754442708265,-400.0,0.00036712,14]
[377564120,1754442708274,-400.0,0.00036712,14]
[377564121,1754442708284,-1380.5,0.00036712,14]
[377564122,1754442708294,-1463.79,0.00036712,14]
[377564123,1754442708305,-489.01,0.00036712,14]
[377564124,1754442708314,-400.0,0.00036712,14]
[377564125,1754442708324,-2205.35,0.00036712,14]
[377564126,1754442708334,-2207.6,0.00036712,14]
[377564127,1754442708343,-151.0,0.00036712,7]
[377564128,1754442708353,-400.0,0.00036712,14]
[377564129,1754442708363,-491.72,0.00036712,14]
[377564130,1754442708372,-414.28,0.00036712,14]
[377564131,1754442708382,-400.0,0.00036712,14]
[377564132,1754442708392,-400.0,0.00036712,14]
[377564133,1754442708402,-248.23779673,0.00036712,14]
[377564134,1754442708412,-1972.25,0.00036712,14]
[377564135,1754442708422,-400.0,0.00036712,14]
[377564136,1754442708431,-1215.67,0.00036712,14]
[377564137,1754442708441,-794.93,0.00036712,14]
[377564138,1754442708450,-400.0,0.00036712,14]
[377564139,1754442708460,-1015.96,0.00036712,14]
[377564140,1754442708470,-422.44,0.00036712,14]
[377564141,1754442708480,-2085.19,0.00036712,14]
[377564142,1754442708490,-1312.75,0.00036712,14]
[377564143,1754442708502,-400.0,0.00036712,14]
[377564144,1754442708518,-3346.64,0.00036712,14]
[377564145,1754442708532,-400.0,0.00036712,14]
[377564146,1754442708542,-777.29,0.00036712,14]
[377564147,1754442708552,-1172.709491,0.00036712,14]
[377564148,1754442708562,-400.0,0.00036712,14]
[377564149,1754442708571,-400.0,0.00036712,14]
[377564150,1754442708581,-932.98,0.00036712,14]
[377564151,1754442708591,-2888.34,0.00036712,14]
[377564152,1754442708601,-1292.66,0.00036712,14]
[377564153,1754442708610,-934.564391,0.00036712,14]
[377564154,1754442708620,-1868.41,0.00036712,14]
[377564155,1754442708630,-2405.61,0.00036712,14]
[377564156,1754442708639,-400.0,0.00036712,14]
[377564157,1754442708649,-1269.3,0.00036712,14]
[377564158,1754442708659,-709.55,0.00036712,14]
[377564159,1754442708669,-1290.39,0.00036712,14]
[377564160,1754442708678,-1328.676612,0.00036712,14]
[377564161,1754442708688,-400.0,0.00036712,14]
[377564162,1754442708698,-400.0,0.00036712,14]
[377564163,1754442708708,-400.0,0.00036712,14]
[377564164,1754442708718,-400.0,0.00036712,14]
[377564165,1754442708727,-400.0,0.00036712,14]
[377564166,1754442708737,-400.0,0.00036712,14]
[377564167,1754442708747,-400.0,0.00036712,14]
[377564168,1754442708756,-437.13,0.00036712,14]
[377564169,1754442708766,-935.04,0.00036712,14]
[377564170,1754442708776,-400.0,0.00036712,14]
[377564171,1754442708786,-1708.33,0.00036712,14]
[377564172,1754442708795,-400.0,0.00036712,14]
[377564173,1754442708805,-1761.05,0.00036712,14]
[377564174,1754442708815,-1704.71,0.00036712,14]
[377564175,1754442708824,-1762.0,0.00036712,14]
[377564176,1754442708836,-672.68,0.00036712,14]
[377564177,1754442708845,-527.32,0.00036712,14]
[377564178,1754442708855,-183.443369,0.00036712,14]
[377564179,1754442708865,-994.04,0.00036712,14]
[377564180,1754442708875,-2290.75,0.00036712,14]
[377564181,1754442708885,-400.0,0.00036712,14]
[377564182,1754442708894,-400.0,0.00036712,14]
[377564183,1754442708903,-400.0,0.00036712,14]
[377564184,1754442708914,-400.0,0.00036712,14]
[377564185,1754442708923,-400.0,0.00036712,14]
[377564186,1754442708932,-2469.75,0.00036712,14]
[377564187,1754442708945,-150.613933,0.00036712,14]
[377564188,1754442708955,-400.0,0.00036712,14]
[377564189,1754442708965,-400.0,0.00036712,14]
[377564190,1754442708974,-400.0,0.00036712,14]
[377564191,1754442708985,-400.0,0.00036712,14]
[377564192,1754442708995,-2205.99,0.00036712,14]
[377564193,1754442709005,-400.0,0.00036712,14]
[377564194,1754442709014,-400.0,0.00036712,14]
[377564195,1754442709024,-779.79,0.00036712,14]
[377564196,1754442709033,-400.0,0.00036712,14]
[377564197,1754442709042,-1057.03,0.00036712,14]
[377564198,1754442709052,-400.0,0.00036712,14]
[377564199,1754442709062,-1461.09,0.00036712,14]
[377564200,1754442709072,-2247.66,0.00036712,14]
[377564201,1754442709081,-400.0,0.00036712,14]
[377564202,1754442709090,-2509.3,0.00036712,14]
[377564203,1754442709100,-1264.35,0.00036712,14]
[377564204,1754442709110,-400.0,0.00036712,14]
[377564205,1754442709119,-579.3,0.00036712,14]
[377564206,1754442709128,-2543.8,0.00036712,14]
[377564207,1754442709138,-927.28,0.00036712,14]
[377564208,1754442709148,-400.0,0.00036712,14]
[377564209,1754442709157,-2035.35,0.00036712,14]
[377564210,1754442709168,-1617.19,0.00036712,14]
[377564211,1754442709178,-430.86,0.00036712,14]
[377564212,1754442709189,-400.0,0.00036712,14]
[377564213,1754442709199,-2035.44,0.00036712,14]
[377564214,1754442709209,-400.0,0.00036712,14]
[377564215,1754442709219,-742.22,0.00036712,14]
[377564216,1754442709235,-1576.22,0.00036712,14]
[377564217,1754442709251,-1564.14,0.00036712,14]
[377564218,1754442709261,-400.0,0.00036712,14]
[377564219,1754442709272,-1123.31,0.00036712,14]
[377564220,1754442709282,-423.59,0.00036712,14]
[377564221,1754442709291,-678.6,0.00036712,14]
[377564222,1754442709301,-1765.72,0.00036712,14]
[377564223,1754442709313,-1488.56,0.00036712,14]
[377564224,1754442709322,-1011.21,0.00036712,14]
[377564225,1754442709332,-480.80988958,0.00036712,14]
[377564226,1754442709341,-523.37,0.00036712,14]
[377564227,1754442709351,-400.0,0.00036712,14]
[377564228,1754442709360,-409.96,0.00036712,14]
[377564229,1754442709370,-1713.82,0.00036712,14]
[377564230,1754442709379,-1839.78,0.00036712,14]
[377564231,1754442709388,-3679.84,0.00036712,14]
[377564232,1754442709398,-790.57,0.00036712,14]
[377564233,1754442709407,-2131.4,0.00036712,14]
[377564234,1754442709417,-1711.85,0.00036712,14]
[377564235,1754442709426,-1776.87,0.00036712,14]
[377564236,1754442709436,-400.0,0.00036712,14]
[377564237,1754442709447,-1388.38,0.00036712,14]
[377564238,1754442709456,-1649.7,0.00036712,14]
[377564239,1754442709466,-1115.45,0.00036712,14]
[377564240,1754442709475,-400.0,0.00036712,14]
[377564241,1754442709484,-705.6,0.00036712,14]
[377564242,1754442709495,-963.25,0.00036712,14]
[377564243,1754442709515,-400.0,0.00036712,14]
[377564244,1754442709525,-2393.93,0.00036712,14]
[377564245,1754442709535,-400.0,0.00036712,14]
[377564246,1754442709545,-724.03,0.00036712,14]
[377564247,1754442709554,-2090.88,0.00036712,14]
[377564248,1754442709563,-497.84,0.00036712,14]
[377564249,1754442709573,-400.0,0.00036712,14]
[377564250,1754442709583,-400.0,0.00036712,14]
[377564251,1754442709592,-1967.34,0.00036712,14]
[377564252,1754442709602,-797.29,0.00036712,14]
[377564253,1754442709612,-496.79,0.00036712,14]
[377564254,1754442709622,-400.0,0.00036712,14]
[377564255,1754442709631,-400.0,0.00036712,14]
[377564256,1754442709640,-400.0,0.00036712,14]
[377564257,1754442709650,-400.0,0.00036712,14]
[377564258,1754442709659,-602.25,0.00036712,14]
[377564259,1754442709669,-2237.67,0.00036712,14]
[377564260,1754442709680,-534.96,0.00036712,14]
[377564261,1754442709690,-1943.05,0.00036712,14]
[377564262,1754442709699,-400.0,0.00036712,14]
[377564263,1754442709709,-1777.23,0.00036712,14]
[377564264,1754442709720,-525.4,0.00036712,14]
[377564265,1754442709731,-400.0,0.00036712,14]
[377564266,1754442709743,-151.0,0.00036712,7]
[377564267,1754442709752,-400.0,0.00036712,14]
[377564268,1754442709761,-400.0,0.00036712,14]